Cogmind - Beta 12 --- EXPLORER MODE // 2023.10.26 @ 15:28:16 Player: rogue 179 Result: Destroyed by B-75 Beast with Heavy Machine Gun Performance ------------- Evolutions (3) 1500 Regions Visited (6) 1200 Robots Destroyed (227) 1135 Value Destroyed (4876) 4876 Prototype IDs (12) 240 Alien Tech Used (0) 0 Bonus (-560) -560 TOTAL SCORE: 8391 Bonus ------- High Alert Combat Kills 44 Friendly Fire -604 Cogmind --------- Core Integrity 0/700 Matter 195/300 Energy 38/100 System Corruption 0% Temperature Cool (12) Movement Flying (29) Location -7/Lower Caves Parts ------- > --- POWER (2) -------- (None) > --- PROPULSION (5) --- Improved VTOL Module Improved VTOL Module Improved VTOL Module > --- UTILITY (3) ------ Improved Heat Sink Improved Cooling System > --- WEAPON (4) ------- Particle Gun > --- INVENTORY (5) ---- Wheel Peak State ------------ > --- POWER ------------ Improved Deuterium Engine Improved Deuterium Engine > --- PROPULSION ------- Flight Unit VTOL Module Improved VTOL Module Improved VTOL Module Improved VTOL Module > --- UTILITY ---------- Improved Cooling System Medium Storage Unit Terrain Scanner > --- WEAPON ----------- Lightning Gun Lightning Gun Spread Laser Heavy Laser > --- INVENTORY -------- Light Ion Engine Heavy Ion Engine Wheel Wheel Wheel Wheel Compact Wheel VTOL Module [Rating: 44] Favorites ----------- Power Heavy Ion Engine Engine Heavy Ion Engine Power Core Enhanced Nuclear Core Propulsion Wheel Treads Light Treads Leg Carbon-fiber Leg Wheel Wheel Hover Unit Aerolev Unit Flight Unit Flight Unit Utility Medium Storage Unit Device Terrain Scanner Storage Medium Storage Unit Processor Targeting Computer Protection Improved Propulsion Shielding Weapon Lightning Gun Energy Gun Lightning Gun Energy Cannon EM Pulse Cannon Ballistic Gun Gauss Rifle Launcher Advanced EMP Blaster Special Weapon Mining Laser Special Melee Weapon Datajack Build | -11 -10 -9 -8 -8 -7 -7 ------- Run | Jun Mat Mat Mat Sto Fac Low Slots Evolved 7 | . 1 2 2 . 2 . Power 1 | . . 1 . . . . Propulsion 3 | . 1 . 1 . 1 . Utility 1 | . . 1 . . . . Weapon 2 | . . . 1 . 1 . Parts Attached 196 | 9 3 36 18 52 64 14 Power 33 | 1 1 9 4 10 6 2 Engine 30 | 1 1 9 4 9 5 1 Core 3 | . . . . 1 1 1 Reactor . | . . . . . . . Propulsion 87 | 4 2 9 5 24 37 6 Treads 4 | 2 . 2 . . . . Leg 2 | . . . . . 2 . Wheel 54 | 2 2 7 5 13 23 2 Hover 1 | . . . . 1 . . Flight 26 | . . . . 10 12 4 Utility 25 | 2 . 6 . 7 7 3 Device 15 | . . 4 . 4 4 3 Storage 6 | 1 . 2 . 1 2 . Processor 2 | 1 . . . 1 . . Hackware . | . . . . . . . Protection 2 | . . . . 1 1 . Artifact . | . . . . . . . Weapon 51 | 2 . 12 9 11 14 3 Energy Gun 44 | 2 . 10 7 10 12 3 Energy Cannon 1 | . . . . 1 . . Ballistic Gun 2 | . . . 1 . 1 . Ballistic Cannon . | . . . . . . . Launcher 1 | . . . 1 . . . Special Weapon 2 | . . 2 . . . . Impact Weapon . | . . . . . . . Slashing Weapon . | . . . . . . . Piercing Weapon . | . . . . . . . Special Melee Weapon 1 | . . . . . 1 . Unidentified Prototypes 12 | . . 3 3 2 4 . Parts Lost 29 | . . 5 1 2 6 15 Power 6 | . . 1 . . 1 4 Propulsion 10 | . . 2 1 . 2 5 Utility 7 | . . 1 . 2 1 3 Weapon 6 | . . 1 . . 2 3 Highest Loss Streak 6 | . . 3 1 1 2 6 To Critical Strikes . | . . . . . . . Average Slot Usage (%) 94 | . 97 94 96 98 94 73 Engine 13 | . 12 18 16 15 12 5 Core 1 | . . . . . 2 7 Wheel 21 | . 35 25 29 17 19 22 Flight 9 | . . . . 15 13 . Device 10 | . . 13 16 10 9 10 Storage 8 | . 12 10 8 12 6 1 Processor 1 | . 12 4 . . . . Energy Gun 22 | . 25 17 24 21 24 15 Naked Turns . | . . . . . . . Heaviest Build 59 | 17 19 41 42 59 48 48 Greatest Support 56 | 40 30 42 40 52 56 50 Greatest Overweight (x) 5 | 5 . 3 4 3 3 2 Average Overweight (x) . | . . . . 1 . . Largest Inventory Capacity 15 | 10 10 15 15 15 10 10 Average Capacity 11 | 9 10 14 15 12 9 6 Most Carried 15 | 6 9 15 15 15 10 9 Average Carried 9 | 3 6 10 13 11 7 5 Final Capacity 15 | 10 10 15 15 10 10 5 Final Carried 14 | 6 9 13 14 7 8 1 Class Distribution -------------------- 21% | Hacker-Mutant 18% | Scavenger-Gunner 16% | Scavenger-Mutant 16% | Scavenger-Tank 13% | Scavenger-Skirmisher 8% | Hacker-Skirmisher Dominant Class ---------------- Hacker-Mutant | -10/Materials Hacker-Mutant | -9/Materials Scavenger-Skirmisher | -8/Materials Scavenger-Gunner | -8/Storage Scavenger-Skirmisher | -7/Factory Scavenger-Tank | -7/Lower Caves Resources | -11 -10 -9 -8 -8 -7 -7 ----------- Run | Jun Mat Mat Mat Sto Fac Low Matter Collected 2836 | 290 30 566 326 644 717 263 Remotely . | . . . . . . . Salvage Created 9027 | 264 395 1233 745 2973 2639 778 Parts 513 | 24 24 66 55 161 158 25 Haulers Intercepted 11 | . . 1 1 6 3 . Recyclers Shooed 5 | . . . 2 2 1 . Parts Field Recycled . | . . . . . . . Retrieved Matter . | . . . . . . . Parts Self-Destructed . | . . . . . . . Prevented . | . . . . . . . Kills | -11 -10 -9 -8 -8 -7 -7 ------- Run | Jun Mat Mat Mat Sto Fac Low Combat Hostiles Destroyed 90 | . 6 11 7 26 30 10 Guns 81 | . 6 9 7 19 30 10 Cannons 4 | . . . . 4 . . AOE 3 | . . 1 . 2 . . Classes Destroyed 16 | 3 4 3 2 1 1 2 Worker 37 | 2 2 4 8 11 10 . Builder 35 | . 1 4 4 11 15 . Tunneler 14 | 8 . 2 1 1 2 . Hauler 11 | . . 1 1 6 3 . Recycler 22 | 1 1 5 . 9 6 . Mechanic 1 | . . . 1 . . . Operator 3 | . . 1 . 2 . . Watcher 11 | . 3 2 2 2 2 . Swarmer 11 | . 2 . . 2 5 2 Grunt 50 | . 4 8 4 12 18 4 Brawler 1 | . . . 1 . . . Sentry 22 | . . 3 2 11 5 1 Hunter 1 | . . . . 1 . . Programmer 2 | . . . . . 2 . Thug 1 | . . . . . . 1 Savage 1 | . . . . . . 1 Butcher 3 | . . . . . . 3 Mutant 1 | . . . . . . 1 Best Kill Streak 9 | 3 4 4 9 9 7 6 Combat Bots Only 6 | . 4 4 2 4 5 6 Max Kills in Single Turn 2 | 1 1 2 1 2 2 2 Gunslinging 1 | . . . . . 1 1 Exploded 1 | . . 1 . 1 . . Melee . | . . . . . . . Uniques/NPCs Destroyed . | . . . . . . . Combat | -11 -10 -9 -8 -8 -7 -7 -------- Run | Jun Mat Mat Mat Sto Fac Low Damage Taken 4451 | . 75 877 309 704 1274 1212 Core 1247 | . 10 328 66 142 343 358 Absorbed by Shields 35 | . . . . 35 . . Redirected to Shielding 104 | . . . . . 32 72 Core Remaining (%) 69 | 100 96 18 . 62 . . Volleys Fired 560 | 23 37 99 62 144 144 51 Largest 4 | 2 2 2 3 3 4 4 Hottest 244 | 100 100 106 184 177 244 238 Shots Fired 1358 | 46 74 163 123 378 425 149 Gun 1302 | 46 74 163 123 322 425 149 Cannon 56 | . . . . 56 . . Launcher . | . . . . . . . Special . | . . . . . . . Kinetic 55 | . . . . . 9 46 Thermal 877 | 46 74 160 77 206 251 63 Explosive . | . . . . . . . Electromagnetic 426 | . . 3 46 172 165 40 Robot Hit Streak 47 | 10 31 35 37 47 45 39 Robot Miss Streak 4 | 1 1 4 2 4 2 2 Penetration Max 1 | . . . . . . 1 Secondary Targets 10 | . 2 1 . 1 5 1 Max Gunslinging Chain 1 | . 1 1 . 1 1 1 Shots Hit Robots 838 | 26 51 134 78 232 223 94 Core Hits 409 | 12 18 47 34 94 158 46 Critical Kills . | . . . . . . . Critical Parts Destroyed 1 | . . . . . . 1 Critical Strikes 37 | 4 4 2 3 13 10 1 Burn 30 | 4 4 2 2 12 6 . Destroy 1 | . . . . . . 1 Corrupt 6 | . . . 1 1 4 . Melee Attacks 2 | . . . . . 2 . Impact . | . . . . . . . Slashing . | . . . . . . . Piercing . | . . . . . . . Sneak Attacks . | . . . . . . . Combat Hostiles . | . . . . . . . Follow-up Attacks . | . . . . . . . Damage Inflicted 14665 | 323 638 1836 1418 4239 4306 1905 Guns 13470 | 323 638 1729 1320 3323 4232 1905 Cannons 717 | . . . . 717 . . Explosions 476 | . . 107 98 199 72 . Melee . | . . . . . . . Ramming 2 | . . . . . 2 . Kinetic 670 | . . . . . 58 612 Thermal 8897 | 323 638 1789 805 2244 2180 918 Explosive 121 | . . . 16 105 . . Electromagnetic 4975 | . . 47 597 1890 2066 375 Impact . | . . . . . . . Slashing . | . . . . . . . Piercing . | . . . . . . . Highest Corruption 1 | . 1 1 . 1 . . Average Corruption 1 | . 1 1 . 1 . . Corruption Purged . | . . . . . . . Corruption Blocked . | . . . . . . . Effects 12 | . 2 . . 10 . . Matter Fused 5 | . . . . 5 . . Energy Discharges 2 | . . . . 2 . . Parts Fused 1 | . 1 . . . . . Data Loss (minor) 2 | . 1 . . 1 . . Alerts 1 | . . . . 1 . . Weapon Failures 1 | . . . . 1 . . Overload Shots . | . . . . . . . Overflow Damage 113 | . . . . 92 21 . Projectiles 92 | . . . . 92 . . Explosions 21 | . . . . . 21 . Melee . | . . . . . . . Knockbacks . | . . . . . . . Impact . | . . . . . . . Kinetic . | . . . . . . . Secondary . | . . . . . . . Self-Inflicted Damage 380 | . . 13 96 110 161 . Shots 10 | . . 1 2 3 4 . Rammed 1 | . . . . . 1 . Targets Rammed 1 | . . . . . 1 . Kicked . | . . . . . . . Crushed . | . . . . . . . Highest Temperature 728 | 234 302 728 656 595 652 538 Average Temperature 165 | 69 92 234 207 184 130 171 Received Heat Transfer 1956 | . 45 435 153 390 489 444 Effects 191 | . 1 46 35 64 40 5 Shutdowns 60 | . . 11 11 26 10 2 Energy Bleed 25 | . . 5 2 9 8 1 Interference 25 | . 1 3 7 9 5 . Matter Decay 17 | . . 7 2 4 3 1 Short Circuit 17 | . . 6 3 6 2 . Damage (minor) 11 | . . 5 3 3 . . Damage (major) 29 | . . 6 7 6 10 . Damage (core) 7 | . . 3 . 1 2 1 Siege Activations . | . . . . . . . Robots Corrupted 2 | . . . . 2 . . Combat Hostiles 1 | . . . . 1 . . Parts Fried 24 | . . . 1 16 6 1 Impact Corruptions . | . . . . . . . Robots Melted 4 | . 1 2 . 1 . . Combat Hostiles 1 | . . 1 . . . . Parts Melted 43 | 9 6 8 3 11 6 . Heat Transferred 22495 | 1258 2183 4659 1963 6057 4316 2059 Parts Sabotaged . | . . . . . . . Parts Stolen . | . . . . . . . Parts Stripped . | . . . . . . . Power Chain Reactions 9 | . . 1 3 3 2 . Missiles Intercepted . | . . . . . . . Alert | -11 -10 -9 -8 -8 -7 -7 ------- Run | Jun Mat Mat Mat Sto Fac Low Peak Influence 436 | 55 237 249 204 429 436 . Initial 79 | . 26 . 42 50 79 . Average 137 | 22 110 79 90 175 160 . Maximum Alert Level 2 | . 1 1 1 2 2 . Low Security (%) 70 | 100 82 92 97 54 61 . Level 1 27 | . 17 7 3 37 38 . Level 2 2 | . . . . 7 . . Level 3 . | . . . . . . . Level 4 . | . . . . . . . Level 5 . | . . . . . . . High Security . | . . . . . . . Max Security . | . . . . . . . Squads Dispatched 19 | . . 3 . 4 12 . Investigation . | . . . . . . . Extermination 2 | . . . . . 2 . Reinforcement 11 | . . 3 . 3 5 . Assault . | . . . . . . . Garrison 6 | . . . . 1 5 . Intercept . | . . . . . . . Searches Triggered . | . . . . . . . Construction Impeded 2 | . . . . . 2 . Haulers Reinforced 1 | . . . . . 1 . Active Scanning Responses . | . . . . . . . Cargo Convoy Interrupts . | . . . . . . . Stealth | -11 -10 -9 -8 -8 -7 -7 --------- Run | Jun Mat Mat Mat Sto Fac Low Distress Signals 11 | . . 2 2 2 5 . Communications Jammed . | . . . . . . . Distress Signals . | . . . . . . . Times Spotted 126 | . 10 24 10 31 38 13 Peak Tracking Total 7 | . 3 5 2 3 5 7 Tactical Retreats 3 | . . . . . 2 1 Traps | -11 -10 -9 -8 -8 -7 -7 ------- Run | Jun Mat Mat Mat Sto Fac Low Traps Triggered 13 | . 1 7 . 2 3 . Indirectly . | . . . . . . . Trap Hack Attempts . | . . . . . . . Triggered . | . . . . . . . Disarmed . | . . . . . . . Reprogrammed . | . . . . . . . Reused . | . . . . . . . Traps Extracted . | . . . . . . . Installed . | . . . . . . . Triggered . | . . . . . . . Machines | -11 -10 -9 -8 -8 -7 -7 ---------- Run | Jun Mat Mat Mat Sto Fac Low Machines Disabled 24 | . . 1 1 7 15 . Max in Single Turn 2 | . . 1 1 2 2 . Machines Repaired . | . . . . . . . Machines Sabotaged . | . . . . . . . Overloaded Fab Kills . | . . . . . . . Hacking | -11 -10 -9 -8 -8 -7 -7 --------- Run | Jun Mat Mat Mat Sto Fac Low Machines Accessed 2 | . 1 . . 1 . . Terminals 2 | . 1 . . 1 . . Fabricators . | . . . . . . . Repair Stations . | . . . . . . . Recycling Units . | . . . . . . . Scanalyzers . | . . . . . . . Garrison Access . | . . . . . . . Total Hacks 2 | . 1 . . 1 . . Successful 2 | . 1 . . 1 . . Failed . | . . . . . . . Catastrophic . | . . . . . . . Database Lockouts . | . . . . . . . Manual . | . . . . . . . Terminals 2 | . 1 . . 1 . . Fabricators . | . . . . . . . Repair Stations . | . . . . . . . Recycling Units . | . . . . . . . Scanalyzers . | . . . . . . . Garrison Access . | . . . . . . . Terminal Hacks 2 | . 1 . . 1 . . Record 1 | . . . . 1 . . Locate Traps 1 | . 1 . . . . . Fabricator Hacks . | . . . . . . . Repair Station Hacks . | . . . . . . . Recycling Unit Hacks . | . . . . . . . Scanalyzer . | . . . . . . . Garrison Access Hacks . | . . . . . . . Unauthorized Hacks . | . . . . . . . Terminals . | . . . . . . . Fabricators . | . . . . . . . Repair Stations . | . . . . . . . Recycling Units . | . . . . . . . Scanalyzers . | . . . . . . . Garrison Access . | . . . . . . . Data Cores Recovered 1 | . . . . 1 . . Used . | . . . . . . . Hacking Detections 1 | . . . . 1 . . Full Trace Events . | . . . . . . . Feedback Events . | . . . . . . . Feedback Blocked . | . . . . . . . Robot Schematics Acquired . | . . . . . . . Robots Built . | . . . . . . . Authchips . | . . . . . . . Time . | . . . . . . . Total Robot Build Rating . | . . . . . . . Part Schematics Acquired . | . . . . . . . Parts Built . | . . . . . . . Authchips . | . . . . . . . Time . | . . . . . . . Total Part Build Rating . | . . . . . . . Parts Repaired . | . . . . . . . Time . | . . . . . . . Parts Recycled . | . . . . . . . Recycled Matter . | . . . . . . . Retrieved Matter . | . . . . . . . Retrieved Components . | . . . . . . . Parts Scanalyzed . | . . . . . . . Part Schematics Acquired . | . . . . . . . Parts Damaged . | . . . . . . . Bothacking | -11 -10 -9 -8 -8 -7 -7 ------------ Run | Jun Mat Mat Mat Sto Fac Low Used RIF Installer . | . . . . . . . Robots Hacked 1 | . . . . . 1 . Non-combat 1 | . . . . . 1 . Combat . | . . . . . . . Robot Hacks Applied 1 | . . . . . 1 . find_chute 1 | . . . . . 1 . Relay Couplers Released . | . . . . . . . Fabnet Peak Effective % . | . . . . . . . Robots Rewired . | . . . . . . . Allies Hacked . | . . . . . . . Hacks Repelled . | . . . . . . . Allies | -11 -10 -9 -8 -8 -7 -7 -------- Run | Jun Mat Mat Mat Sto Fac Low Total Allies . | . . . . . . . Largest Group . | . . . . . . . Highest-Rated Group . | . . . . . . . Highest-Rated Ally . | . . . . . . . Total Orders . | . . . . . . . Ally Attacks . | . . . . . . . Total Damage . | . . . . . . . Kills . | . . . . . . . Allies Corrupted . | . . . . . . . Allies Melted . | . . . . . . . Intel | -11 -10 -9 -8 -8 -7 -7 ------- Run | Jun Mat Mat Mat Sto Fac Low Robot Analysis Total . | . . . . . . . Derelict Logs Recovered 1 | . . . . . . 1 Drone Launches . | . . . . . . . Drone Recoveries . | . . . . . . . Exploration | -11 -10 -9 -8 -8 -7 -7 ------------- Run | Jun Mat Mat Mat Sto Fac Low Turns Passed 6444 | 262 452 789 600 1916 1892 533 Spaces Moved 4092 | 181 415 448 424 1014 1222 388 Core 28 | 28 . . . . . . Treads 69 | 22 . 47 . . . . Legs 44 | . . . . . 44 . Wheels 3175 | 131 415 401 424 626 795 383 Hover . | . . . . . . . Flight 776 | . . . . 388 383 5 Fastest Speed 26 | 50 80 80 80 80 80 26 Average Speed 103 | 94 80 100 89 128 102 86 Slowest Speed 300 | 300 80 160 140 277 195 110 Overloaded Moves . | . . . . . . . Propulsion Burnouts . | . . . . . . . Robots Hopped . | . . . . . . . Cave-ins Triggered . | . . . . . . . Exploration Rate (%) 36 | 7 42 38 22 84 24 37 Regions Visited 6 Branch Regions 2 Pre-discovered Areas . | . . . . . . . Known Exits Taken 6 | 1 1 1 1 1 1 . Unknown Exits Taken . | . . . . . . . Scrap Searched 7 | . . . . . . 7 Spaces Dug 2 | . . . . . . 2 Terrain Destroyed 341 | . . . 48 67 223 3 Melee . | . . . . . . . Projectile 3 | . . . . . . 3 AOE 338 | . . . 48 67 223 . Terrain Rammed . | . . . . . . . Walls Destroyed . | . . . . . . . Machines Disabled . | . . . . . . . Actions | -11 -10 -9 -8 -8 -7 -7 --------- Run | Jun Mat Mat Mat Sto Fac Low Total 5182 | 225 460 619 539 1330 1543 466 Wait 42 | . . 1 5 31 5 . Move 4086 | 180 414 447 423 1013 1221 388 Hop . | . . . . . . . Pick Up 149 | 13 5 23 15 29 56 8 Fast Attach 8 | . . 1 3 . 1 3 Attach 60 | 7 1 15 2 10 18 7 Detach 6 | . . 3 1 2 . . Swap 128 | 2 2 20 13 42 45 4 Drop 114 | . 1 10 15 41 42 5 Fire 560 | 23 37 99 62 144 144 51 Melee 2 | . . . . . 2 . Ram 1 | . . . . . 1 . Kick . | . . . . . . . Crush . | . . . . . . . Escape Stasis 26 | . . . . 18 8 . Rewire . | . . . . . . . Trap . | . . . . . . . Miscellaneous . | . . . . . . . Route ------- -11/Junkyard -10/Materials (discovered 2 exits: *Mat / *Min) -9/Materials (discovered 2 exits: *Mat / *Min) -8/Materials (discovered 2 exits: *Fac / *Sto) -8/Storage -7/Factory -7/Lower Caves History --------- Turn | Location | Event 4 | -11/Junkyard | Identified exit to Materials 4 | -11/Junkyard | Discovered exit to Materials (range 13) 263 | -11/Junkyard | Entered Materials 263 | -10/Materials | Evolved 1 slot: Propulsion x1 302 | -10/Materials | Build established: Hacker-Mutant 337 | -10/Materials | Identified exit to Mines 337 | -10/Materials | Discovered exit to Mines (range 8) 515 | -10/Materials | Identified exit to Materials 515 | -10/Materials | Discovered exit to Materials (range 3) 715 | -10/Materials | Entered another Materials area 715 | -9/Materials | Evolved 2 slots: Power x1, Utility x1 839 | -9/Materials | Identified exit to Mines 839 | -9/Materials | Discovered exit to Mines (range 10) 1053 | -9/Materials | Core integrity fell below 50% 1127 | -9/Materials | Lost 3 parts (1n1u1w) 1322 | -9/Materials | Core integrity fell below 20% 1410 | -9/Materials | Identified exit to Materials 1410 | -9/Materials | Discovered exit to Materials (range 5) 1504 | -9/Materials | Entered another Materials area 1504 | -8/Materials | Evolved 2 slots: Propulsion x1, Weapon x1 1759 | -8/Materials | Identified exit to Factory 1759 | -8/Materials | Discovered exit to Factory (range 3) 2024 | -8/Materials | Identified exit to Storage 2024 | -8/Materials | Discovered exit to Storage (range 16) 2104 | -8/Materials | Entered Storage 2110 | -8/Storage | Build established: Scavenger-Skirmisher 2482 | -8/Storage | Build established: Scavenger-Gunner 3492 | -8/Storage | Build established: Scavenger-Tank 3737 | -8/Storage | Garrison activated, responded to threat 3937 | -8/Storage | Discovered exit to Factory (range 9) 4020 | -8/Storage | Entered Factory 4020 | -7/Factory | Evolved 2 slots: Propulsion x1, Weapon x1 4181 | -7/Factory | Garrison activated, responded to threat 4646 | -7/Factory | Garrison activated, responded to threat 4873 | -7/Factory | Build established: Scavenger-Skirmisher 5292 | -7/Factory | Build established: Hacker-Skirmisher 5555 | -7/Factory | Garrison activated, responded to threat 5886 | -7/Factory | Identified exit to Lower Caves 5886 | -7/Factory | Discovered exit to Lower Caves (range 15) 5912 | -7/Factory | Entered Lower Caves 5972 | -7/Lower Caves | Learned Factory terminal intel 6013 | -7/Lower Caves | Build established: Scavenger-Tank 6053 | -7/Lower Caves | Attracted the attention of an 0b10 base 6066 | -7/Lower Caves | Core integrity fell below 50% 6109 | -7/Lower Caves | Lost 4 parts (1p1n2u) 6156 | -7/Lower Caves | Ambushed by wild Derelicts 6180 | -7/Lower Caves | Core integrity fell below 20% 6202 | -7/Lower Caves | Lost 6 parts (1p2n1u2w) 6232 | -7/Lower Caves | Encountered a Warlord checkpoint 6405 | -7/Lower Caves | Spotted B-75 Beast 6445 | -7/Lower Caves | Destroyed by B-75 Beast with Heavy Machine Gun Last Messages --------------- 06313_ Slug penetrates JS-CPN(b). 06317_ JS-CPN(b) destroyed. 06322_ Acquired 55 matter. 06341_ Acquired Particle Gun. 06347_ Acquired KE Penetrator. 06348_ Dropped KE Penetrator. 06349_ Acquired Particle Gun. 06392_ Slug penetrates Abandoned Machinery. 06408_ Knocked back. 06410_ Slug penetrates B-75 Beast. 06412_ Gatling Laser destroyed. 06415_ Wheel destroyed. 06416_ Acquired 1 matter. 06425_ Slug penetrates Abandoned Machinery. 06430_ Slug penetrates B-75 Beast. 06430_ Imp. Deuterium Engine destroyed. 06430_ Gauss Rifle blasted off. 06434_ VTOL Module destroyed. 06434_ Lgt. Nuclear Core destroyed. 06438_ Particle Gun blasted off. Map ----- +----------------------------------------------------+ | | | | | | | | | | | | | | | ?????????????????????????????????????????????????? | | ?????????????????????????????????????????????????? | | ?????????????????????????????????????????????????? | | ?????????????????????????????????????????????????? | | ?????????????????????????????????????????????????? | | ?????????????????????????????????????????????????? | | ?????????????????????????????????????????????????? | | ?????????????????????????????????????????????????? | | ?????????????????????????????????????????????????? | | ??????????????????????????????????????????####???? | | ?????????????????????????????????????????#"" ""??? | | ?????????????????????????????????????????#"" ""??? | | ????????????????????"????????????????????#"" ""??? | | ????????????????????""????????????????????#" "#??? | | ???????????????????#"" ??????????????????##" "###? | | ????????????????????#" "###??????????????#"" "" #? | | ???????????????????##" "#[####???????????# ## | | ???????????????????#"" %" ###????????## ## # | | ???????????????????# #%#@[ ;###??????# ## # | | ??????????????????????# ## ##?????# ## # | | ??????????????????????#??# ####### # | | ?????????????????????????####;;;% ## # | | ?????????????????????????????#;; ##### ## | | ??????????????????????????????# ;#???# #### | | ??????????????????????????????# ??# ###??### | | ??????????????????????????????## BB ?## #??????? | | ???????????????????????????????# B ?# #??????? | | ???????????????????????????????## #??????? | | ????????????????????????????????# ####??????? | | ????????????????????????????????# #???#####?? | | ????????????????????? ???????????#######???# ### | | ????????????????????? ??????????????????## ## | | ???????????????????? ????????????????# | | ????????????????????? ??????????????## | | ????????????????????? ?????????????# | | ???????????????????? ????????????## | | ????????????????????? ????????????# | | ????????????????????????# #####??????# | | ???????????????????????????# #?###### ### | | ???????????????????????????## ## #?# #?## | | ????????????????????????????????# ### #??## | | ????????????????????????????????# ######???# | | ???????????????????????????????## #????????# | +----------------------------------------------------+ Best States ------------- Heat Dissipation 75 Coolant Potential 50 Energy Generation 28 Energy Capacity 490 Matter Stores 300 Matter Capacity 400 Sight Range 16 Terrain Scan Range 16 Terrain Scan Density 10 Additional Mass Support 6 Armor Coverage 150 Resistance: KI 35 Resistance: TH 35 Resistance: EX 35 Resistance: EM 35 Resistance: I 35 Resistance: S 35 Resistance: P 35 Propulsion Shielding 66 Evasion (%) 50 Targeting Accuracy 5 Recoil Reduction 2 Offensive Hacking 20 Item Schematics ----------------- None Robot Schematics ------------------ None Fabricated ------------ Nothing Alien Tech Used ----------------- None Achievements -------------- None Challenges ------------ None Game ------ Seed SmallStasisLoader Manual? 0 Play Time 02:04:15 Cumulative 138.5 hours Start 2023.10.26 @ 13:02:26 End 2023.10.26 @ 15:28:16 Sessions 1 Manual Loads 0 Difficulty Explorer Special Mode None Game No. 76 Rogue 56 Adventurer 14 Explorer 6 Win Type - Total 0 Types 0/0/0/0/0/0/0/0/0 Lore% 24 Gallery% 44 Achievement% 36 Wizard Run 0 Options --------- ASCII 0 Keyboard 0 Movement Mouse Keybinds 0 Fullscreen 1 Font 18/SmallcapsGlow Map View 76x50 Tactical HUD 1 Map Filters NONE Filters NONE Steam 1 RUN: ac3bdb6f-138f-410d-b421-c2e73b1533a2